lending/lending_fUSD_20240911
["ID","MTS","AMOUNT","RATE_DAILY","PERIOD"]
[337765784,1726073439634,-500.0,0.0001468,2]
[337765785,1726073439643,-500.0,0.00014689,2]
[337765786,1726073439653,-500.0,0.00014698,2]
[337765787,1726073439662,-500.0,0.00014706,2]
[337765788,1726073439672,-500.0,0.00014715,2]
[337765789,1726073439682,-500.0,0.00014724,2]
[337765790,1726073439691,-500.0,0.00014733,2]
[337765791,1726073439701,-500.0,0.00014742,2]
[337765792,1726073439710,-500.0,0.0001475,2]
[337765793,1726073439719,-21711.5220999,0.00014755,2]
[337765794,1726073439729,-500.0,0.00014759,2]
[337765795,1726073439739,-506.131863,0.00014765,2]
[337765796,1726073439748,-506.131863,0.00014765,2]
[337765797,1726073439758,-151.0,0.00014765,2]
[337765798,1726073439767,-151.0,0.00014765,2]
[337765799,1726073439776,-151.0,0.00014765,2]
[337765800,1726073439786,-151.0,0.00014765,2]
[337765801,1726073439795,-151.0,0.00014765,2]
[337765802,1726073439805,-464.836153,0.00014765,2]
[337765803,1726073439815,-151.0,0.00014765,2]
[337765804,1726073439824,-248.278414,0.00014765,2]
[337765805,1726073439833,-248.278414,0.00014765,2]
[337765806,1726073439843,-187.940901,0.00014765,2]
[337765807,1726073439853,-1018.80654,0.00014765,2]
[337765808,1726073439863,-187.940901,0.00014765,2]
[337765809,1726073439872,-290.465355,0.00014765,2]
[337765810,1726073439882,-1018.80654,0.00014765,2]
[337765811,1726073439892,-151.0,0.00014765,2]
[337765812,1726073439902,-151.0,0.00014765,2]
[337765813,1726073439911,-151.0,0.00014765,2]
[337765814,1726073439921,-223.190224,0.00014765,2]
[337765815,1726073439932,-151.0,0.00014765,2]
[337765816,1726073439942,-151.0,0.00014765,2]
[337765817,1726073439953,-277.439932,0.00014765,2]
[337765818,1726073439962,-151.0,0.00014765,2]
[337765819,1726073439971,-151.0,0.00014765,2]
[337765820,1726073439981,-252.955048,0.00014765,2]
[337765821,1726073439990,-252.955048,0.00014765,2]
[337765822,1726073440001,-1859.232372,0.00014765,2]
[337765823,1726073440010,-1859.232372,0.00014765,2]
[337765824,1726073440019,-151.0,0.00014765,2]
[337765825,1726073440030,-151.0,0.00014765,2]
[337765826,1726073440039,-151.0,0.00014765,2]
[337765827,1726073440048,-21711.5220999,0.00014765,2]
[337765828,1726073440057,-328.0,0.00014767,2]
[337765829,1726073440067,-500.0,0.00014768,2]
[337765830,1726073440075,-151.0,0.00014775,2]
[337765831,1726073440085,-191.860967,0.00014775,2]
[337765832,1726073440094,-274.615934,0.00014775,2]
[337765833,1726073440103,-151.0,0.00014775,2]
[337765834,1726073440112,-218.955811,0.00014775,2]
[337765835,1726073440121,-332.390001,0.00014775,2]
[337765836,1726073440130,-218.955811,0.00014775,2]
[337765837,1726073440139,-332.390001,0.00014775,2]
[337765838,1726073440149,-151.0,0.00014775,2]
[337765839,1726073440159,-151.0,0.00014775,2]
[337765840,1726073440168,-597.663944,0.00014775,2]
[337765841,1726073440177,-151.0,0.00014775,2]
[337765842,1726073440188,-597.663944,0.00014775,2]
[337765843,1726073440197,-25837.65191834,0.00014775,2]
[337765844,1726073440207,-151.0,0.00014775,2]
[337765845,1726073440216,-151.0,0.00014775,2]
[337765846,1726073440225,-669.681566,0.00014775,2]
[337765847,1726073440235,-669.681566,0.00014775,2]
[337765848,1726073440244,-151.0,0.00014775,2]
[337765849,1726073440253,-164.094653,0.00014775,2]
[337765850,1726073440262,-332.4526,0.00014775,2]
[337765851,1726073440271,-151.0,0.00014775,2]
[337765852,1726073440281,-151.0,0.00014775,2]
[337765853,1726073440290,-332.4526,0.00014775,2]
[337765854,1726073440299,-151.0,0.00014775,2]
[337765855,1726073440309,-500.0,0.00014777,2]
[337765856,1726073440319,-500.0,0.00014786,2]
[337765857,1726073440328,-1185.72393298,0.0001479,2]
[337765858,1726073440337,-509.31138186,0.0001479,2]
[337765859,1726073440346,-500.0,0.00014794,2]
[337765860,1726073440355,-167006.25188127,0.000148,2]
[337765861,1726073440365,-419.0,0.000148,25]
[337765862,1726073440374,-3000.0,0.000148,2]
[337765863,1726073440383,-500.0,0.00014803,2]
[337765864,1726073440392,-500.0,0.00014812,2]
[337765865,1726073440402,-500.0,0.00014821,2]
[337765866,1726073440411,-711.84,0.00014822,10]
[337765867,1726073440420,-500.0,0.0001483,2]
[337765868,1726073440432,-500.0,0.00014838,2]
[337765869,1726073440441,-1185.72393296,0.00014845,2]
[337765870,1726073440450,-509.31138184,0.00014845,2]
[337765871,1726073440460,-500.0,0.00014847,2]
[337765872,1726073440469,-500.0,0.00014856,2]
[337765873,1726073440479,-500.0,0.00014865,2]
[337765875,1726073440490,-500.0,0.00014873,2]
[337765876,1726073440500,-249.39836154,0.00014873,2]
[337765877,1726073440509,-500.0,0.00014873,2]
[337765878,1726073440518,-500.0,0.00014873,2]
[337765879,1726073440528,-500.0,0.00014874,2]
[337765880,1726073440538,-164.499269,0.00014882,2]
[337765881,1726073440547,-164.499269,0.00014882,2]
[337765882,1726073440557,-257.087973,0.00014882,2]
[337765883,1726073440568,-257.087973,0.00014882,2]
[337765884,1726073440578,-161.938201,0.00014882,2]
[337765885,1726073440587,-161.938201,0.00014882,2]
[337765886,1726073440597,-348.747618,0.00014882,2]
[337765887,1726073440607,-348.747618,0.00014882,2]
[337765888,1726073440617,-500.0,0.00014882,2]
[337765889,1726073440626,-86846.0883995,0.0001489,2]
[337765890,1726073440635,-151.0,0.0001489,2]
[337765891,1726073440644,-151.0,0.0001489,2]
[337765892,1726073440654,-151.0,0.0001489,2]
[337765893,1726073440663,-151.0,0.0001489,2]
[337765894,1726073440672,-151.0,0.0001489,2]
[337765895,1726073440683,-151.0,0.0001489,2]
[337765896,1726073440693,-151.0,0.0001489,2]
[337765897,1726073440702,-305.423594,0.0001489,2]
[337765898,1726073440712,-151.0,0.0001489,2]
[337765899,1726073440720,-151.0,0.0001489,2]
[337765900,1726073440730,-280.540052,0.0001489,2]
[337765901,1726073440739,-280.540052,0.0001489,2]
[337765902,1726073440749,-151.0,0.0001489,2]
[337765903,1726073440758,-151.0,0.0001489,2]
[337765904,1726073440767,-151.0,0.0001489,2]
[337765905,1726073440777,-277.251924,0.0001489,2]
[337765906,1726073440787,-277.251924,0.0001489,2]
[337765907,1726073440796,-151.0,0.0001489,2]
[337765908,1726073440806,-151.0,0.0001489,2]
[337765909,1726073440815,-276.089166,0.0001489,2]
[337765910,1726073440824,-151.0,0.0001489,2]
[337765911,1726073440834,-151.0,0.0001489,2]
[337765912,1726073440843,-460.30232,0.0001489,2]
[337765913,1726073440853,-460.30232,0.0001489,2]
[337765914,1726073440862,-262.177209,0.0001489,2]
[337765915,1726073440871,-262.177209,0.0001489,2]
[337765916,1726073440880,-151.0,0.0001489,2]
[337765917,1726073440890,-151.0,0.0001489,2]
[337765918,1726073440899,-151.0,0.0001489,2]
[337765919,1726073440909,-151.0,0.0001489,2]
[337765920,1726073440919,-151.0,0.0001489,2]
[337765921,1726073440929,-500.0,0.00014891,2]
[337765922,1726073440946,-500.0,0.000149,2]
[337765923,1726073440955,-26877.31097266,0.000149,2]
[337765924,1726073441598,-815.90307262,0.000149,2]
[337765925,1726073441617,-24123.41004,0.000149,2]
[337765926,1726073441720,-340.45950124,0.000149,2]
[337765927,1726073441731,-990.16187922,0.000149,2]
[337765928,1726073441743,-294.25582864,0.000149,2]
[337765929,1726073441754,-1056.00499999,0.000149,2]
[337765930,1726073441767,-498.39338516,0.000149,2]
[337765938,1726073443251,-223.655472,0.000145,2]
[337765939,1726073443260,-1114.07325209,0.000149,2]
[337765967,1726073446283,-151.0,0.000145,2]
[337765968,1726073446293,-151.0,0.00014775,2]
[337765969,1726073446303,-5307.34284,0.000149,2]
[337765971,1726073501376,500.0,0.00011164,2]
[337765972,1726073501890,500.0,0.00011164,2]
[337765973,1726073602558,163.33,0.00010959,2]
[337765974,1726074028617,399.24,0.00011835,2]
[337765985,1726074594846,400.77,0.00011573,2]
[337765989,1726074632274,-5773.15660909,0.000128,2]
[337765990,1726074632328,-5761.8768238,0.000128,2]
[337765991,1726074632386,-18464.96656711,0.000128,2]
[337765992,1726074632400,-150.0,0.00013472,2]
[337765993,1726074632410,-448.0,0.00013473,2]
[337765994,1726074632420,-525.92659294,0.00013473,2]
[337766040,1726074638271,-336.86532243,0.00013473,2]
[337766042,1726074638491,-398.20808463,0.00013473,2]
[337766043,1726074638501,-557.0,0.00013473,2]
[337766044,1726074638510,-810.0,0.00013473,2]
[337766045,1726074638519,-931.0,0.00013473,2]
[337766046,1726074638529,-1901.0,0.00013473,2]
[337766047,1726074638538,-553.0,0.00013473,2]
[337766048,1726074638548,-3343.0,0.00013473,2]
[337766049,1726074638557,-805.0,0.00013473,2]
[337766050,1726074638566,-248.0,0.00013473,2]
[337766051,1726074638576,-1920.0,0.00013473,2]
[337766052,1726074638585,-1117.0,0.00013473,2]
[337766053,1726074638595,-5860.0,0.00013473,2]
[337766054,1726074638604,-150.0,0.00013473,2]
[337766055,1726074638614,-1145.0,0.00013473,2]
[337766056,1726074638624,-1079.0,0.00013473,2]
[337766057,1726074638633,-250.0,0.00013522,2]
[337766058,1726074638642,-181.96,0.00013585,2]
[337766059,1726074638652,-198.06,0.00013594,2]
[337766061,1726074638661,-403.2,0.00013598,2]
[337766063,1726074638670,-1212.92,0.00013609,2]
[337766065,1726074638679,-98.0708001,0.00013611,2]
[337766067,1726074638691,-151.9291999,0.00013611,2]
[337766069,1726074638701,-172.38,0.00013699,2]
[337766071,1726074638711,-161.73,0.00013699,2]
[337766073,1726074638720,-90.2108001,0.00013713,2]
[337766080,1726074640307,-109.7891999,0.00013713,2]
[337766081,1726074640316,-499.99,0.00013768,2]
[337766082,1726074640326,-1547.0,0.00013789,2]
[337766083,1726074640335,-624.0,0.00013789,2]
[337766084,1726074640345,-400.77,0.00013837,2]
[337766085,1726074640354,-596.8,0.00013851,2]
[337766086,1726074640364,-5489.67,0.00013851,2]
[337766087,1726074640374,-254.43,0.00013895,2]
[337766088,1726074640383,-488.6060689,0.00013904,2]
[337766089,1726074640393,-593.88,0.00013904,2]
[337766090,1726074640402,-16368.0,0.00014,2]
[337766091,1726074640412,-718.0,0.000142,2]
[337766092,1726074640421,-757.0,0.000142,2]
[337766093,1726074640431,-161.73,0.00014384,2]
[337766094,1726074640439,-812.952,0.0001461,2]
[337766095,1726074640449,-241.44,0.0001461,2]
[337766096,1726074640459,-500.0,0.000147,2]
[337766097,1726074640469,-500.0,0.000147,2]
[337766098,1726074640478,-383.777058,0.00014795,2]
[337766099,1726074640487,-3000.0,0.000148,2]
[337766100,1726074640500,-2781.1689,0.000148,2]
[337766101,1726074640510,-1284.3741,0.000148,2]
[337766102,1726074640520,-4382.30114151,0.000148,2]
[337766103,1726074640530,-4382.30114146,0.00014811,2]
[337766104,1726074640540,-4382.30114146,0.00014822,2]
[337766105,1726074640549,-4382.30114146,0.00014833,2]
[337766106,1726074640558,-4382.30114146,0.00014844,2]
[337766107,1726074640568,-4382.30114146,0.00014856,2]
[337766108,1726074640577,-4382.30114146,0.00014867,2]
[337766109,1726074640586,-320.60220561,0.0001487,2]
[337766110,1726074640596,-4382.30114146,0.00014878,2]
[337766111,1726074640606,-4382.30114146,0.00014889,2]
[337766112,1726074640615,-226.90576131,0.00014899,2]
[337766113,1726074640624,-36950.16971786,0.000149,2]
[337766114,1726074640637,-806.54978124,0.000149,2]
[337766115,1726074641101,-10536.94804298,0.000149,2]
[337766116,1726074641132,-381.26418999,0.000149,2]
[337766127,1726074643374,-139907.75249631,0.000149,2]
[337766128,1726074643384,-3276.31875907,0.000149,2]
[337766129,1726074643393,-262.26772211,0.000149,2]
[337766130,1726074643402,-151.0,0.000149,2]
[337766131,1726074643411,-151.0,0.000149,2]
[337766132,1726074643421,-154.571306,0.000149,2]
[337766133,1726074643430,-154.571306,0.000149,2]
[337766134,1726074643439,-154.571306,0.000149,2]
[337766135,1726074643448,-154.571306,0.000149,2]
[337766136,1726074643458,-151.0,0.000149,2]
[337766137,1726074643467,-1500.0,0.000149,15]
[337766138,1726074643476,-2000.0,0.000149,2]
[337766139,1726074643485,-200.0,0.000149,2]
[337766140,1726074643496,-594.712394,0.000149,2]
[337766141,1726074643505,-884.62527,0.000149,2]
[337766142,1726074643515,-4382.30114146,0.000149,2]
[337766143,1726074643524,-152.9,0.000149,31]
[337766144,1726074643534,-152.9,0.000149,31]
[337766145,1726074643543,-152.9,0.000149,31]
[337766146,1726074643553,-152.9,0.000149,31]
[337766147,1726074643562,-152.9,0.000149,31]
[337766148,1726074643571,-152.9,0.000149,31]
[337766149,1726074643581,-152.9,0.000149,31]
[337766150,1726074643590,-150.0,0.000149,2]
[337766151,1726074643599,-389.93197398,0.000149,2]
[337766152,1726074643608,-509.31138184,0.000149,2]
[337766153,1726074643618,-1185.72393296,0.000149,2]
[337766154,1726074643627,-12656.7364984,0.00014939,2]
[337766155,1726074643636,-15017.7226225,0.00014949,2]
[337766156,1726074643646,-12656.7364984,0.00014959,2]
[337766157,1726074643655,-12656.7364984,0.0001496,2]
[337766158,1726074643664,-150.82,0.0001496,2]
[337766159,1726074643673,-15240.7611912,0.00014969,2]
[337766160,1726074643682,-12656.7364984,0.00014969,2]
[337766161,1726074643691,-19685.1133706,0.00014969,2]
[337766162,1726074643700,-15463.7997599,0.0001497,2]
[337766163,1726074643709,-15686.8383286,0.0001497,2]
[337766164,1726074643718,-12656.7364984,0.0001497,2]
[337766165,1726074643727,-44116.60776543,0.0001497,2]
[337766166,1726074643738,-3912.55971889,0.0001497,2]
[337766167,1726074644647,-15254.51500798,0.0001497,2]
[337766168,1726074644657,-118110.680223,0.0001497,2]
[337766169,1726074644666,-37970.2094953,0.00014979,2]
[337766170,1726074644675,-37656.90263127,0.00014979,2]
[337766176,1726074646870,-155.812301,0.00013974,2]
[337766177,1726074646879,-165.875381,0.00013974,2]
[337766178,1726074646889,-155.812301,0.00014323,2]
[337766179,1726074646898,-155.812301,0.00014673,2]
[337766180,1726074646908,-2260.10526392,0.00014979,2]
[337766181,1726074647087,-592.41580785,0.00014979,2]
[337766182,1726074647099,-812.80499884,0.00014979,2]
[337766183,1726074647112,-17733.11140982,0.00014979,2]
[337766184,1726074647121,-12656.7364984,0.00014979,2]
[337766185,1726074647130,-25313.4729969,0.0001498,2]
[337766186,1726074647139,-39370.2267412,0.0001498,2]
[337766187,1726074647148,-15909.8768974,0.0001498,2]
[337766188,1726074647157,-75940.4189907,0.0001498,2]
[337766189,1726074647166,-78740.4534823,0.0001498,2]
[337766190,1726074647175,-16151.98517233,0.00014989,2]
[337766191,1726074737995,157.85,0.00010959,2]
[337766192,1726074844596,1050.0,0.00011,2]
[337766193,1726074895603,500.0,0.00011164,2]
[337766194,1726075086063,401.53,0.000114,2]
[337766195,1726075267764,214.6,0.00010959,2]
[337766196,1726075593163,381.45,0.00011053,2]
[337766206,1726075699421,23900.0,0.00012001,2]
[337766222,1726075753197,156.79,0.00011997,2]
[337766241,1726075831501,-250.0,0.00012037,2]
[337766242,1726075831510,-156.62,0.00012594,2]
[337766243,1726075831520,-2207.79925718,0.000126,2]
[337766244,1726075831529,-900.0,0.000127,4]
[337766245,1726075831539,-227.18048855,0.0001274,2]
[337766246,1726075831550,-446.45853724,0.0001274,2]
[337766247,1726075831582,-160.22897421,0.0001274,2]
[337766248,1726075831592,-242.785,0.0001274,2]
[337766249,1726075831601,-8121.53479639,0.0001274,2]
[337766250,1726075831611,-1900.0,0.000128,4]
[337766251,1726075831620,-300.0,0.00012879,2]
[337766252,1726075831629,-300.0,0.00012879,2]
[337766253,1726075831638,-7331.05092088,0.0001288,2]
[337766254,1726075831648,-2900.0,0.000129,4]
[337766255,1726075831658,-324.63891237,0.000129,2]
[337766256,1726075831667,-1906.816,0.000129,2]
[337766257,1726075831676,-217.21,0.00012963,2]
[337766258,1726075831685,-160.66,0.00012963,2]
[337766259,1726075831694,-160.66,0.00012967,2]
[337766260,1726075831703,-2246.09,0.00012967,2]
[337766261,1726075831713,-886.62472204,0.00012969,2]
[337766262,1726075831722,-160.66,0.0001297,2]
[337766263,1726075831731,-500.0,0.00012973,2]
[337766264,1726075831741,-160.66,0.00012974,2]
[337766265,1726075831750,-160.66,0.00012977,2]
[337766266,1726075831760,-160.66,0.0001298,2]
[337766267,1726075831769,-160.66,0.00012984,2]
[337766268,1726075831778,-160.66,0.00012987,2]
[337766269,1726075831788,-151.51,0.0001299,2]
[337766271,1726075831797,-237.4765173,0.0001299,2]
[337766273,1726075831806,-160.66,0.00012991,2]
[337766275,1726075831816,-160.66,0.00012994,2]
[337766277,1726075831825,-160.66,0.00012997,2]
[337766279,1726075831834,-243.86322988,0.00012999,2]
[337766281,1726075831844,-536.83810701,0.00012999,2]
[337766283,1726075831854,-150.0,0.00012999,2]
[337766285,1726075831863,-399221.66033402,0.00013,2]
[337766287,1726075831875,-369.0,0.00013,2]
[337766289,1726075831887,-470.60202167,0.00013,2]
[337766292,1726075831898,-1286.71745306,0.00013,2]
[337766294,1726075831911,-6931.47533894,0.00013,2]
[337766296,1726075831923,-9027.01825,0.00013,2]
[337766298,1726075831934,-607.36513694,0.00013,2]
[337766300,1726075831949,-2803.40994897,0.00013,2]
[337766302,1726075831961,-900.0,0.00013,2]
[337766304,1726075831972,-1437.62195802,0.00013,2]
[337766306,1726075831983,-569.99999994,0.00013,2]
[337766308,1726075831994,-351.899999,0.00013,2]
[337766311,1726075832005,-2493.04984094,0.00013,2]
[337766313,1726075832016,-766.71121484,0.00013,2]
[337766316,1726075832028,-343003.96700893,0.00013,2]
[337766320,1726075832049,-445.10286169,0.00013,2]
[337766323,1726075832060,-2299.76847704,0.00013,2]
[337766325,1726075832070,-481.470523,0.00013,2]
[337766330,1726075832110,-955.37507359,0.00013,2]
[337766332,1726075832122,-1800.0,0.00013,2]
[337766342,1726075837446,-2895.5,0.00013,2]
[337766343,1726075837459,-1840.08345201,0.00013,2]
[337766344,1726075837539,-1111.14398307,0.00013,2]
[337766345,1726075837551,-13929.74214198,0.00013,2]
[337766346,1726075837566,-4942.34443743,0.00013,2]
[337766347,1726075837577,-1470.99385786,0.00013,2]
[337766348,1726075837588,-999.83499872,0.00013,2]
[337766349,1726075837634,-18929.35859594,0.00013,2]
[337766350,1726075837646,-16183.61727271,0.00013,2]
[337766351,1726075837656,-544.38170658,0.00013,2]
[337766352,1726075837709,-0.47752591,0.00013,2]
[337766353,1726075837720,-281.54309287,0.00013,2]
[337766354,1726075837731,-4981.79999993,0.00013,2]
[337766355,1726075837742,-1738.93951158,0.00013,2]
[337766356,1726075837764,-4678.43151661,0.00013,2]
[337766357,1726075837775,-1014.6173005,0.00013,2]
[337766358,1726075837786,-250.02540403,0.00013,2]
[337766359,1726075837797,-29166.63838452,0.00013,2]
[337766360,1726075837807,-2383.05429346,0.00013,2]
[337766361,1726075837818,-577.87520853,0.00013,2]
[337766378,1726075839593,-431.1014872,0.00013,2]
[337766379,1726075839604,-1157.94059103,0.00013,2]
[337766380,1726075839616,-665.71467956,0.00013,2]
[337766381,1726075839635,-376.25827658,0.00013,2]
[337766382,1726075839646,-699.75004243,0.00013,2]
[337766383,1726075839660,-440.96864,0.00013,2]
[337766384,1726075839671,-869.59654346,0.00013,2]
[337766385,1726075839704,-284.35257,0.00013,2]
[337766386,1726075839715,-22194.97216554,0.00013,2]
[337766387,1726075839728,-284.33595689,0.00013,2]
[337766388,1726075839747,-398.2455263,0.00013,2]
[337766389,1726075839759,-40474.15849275,0.00013,2]
[337766390,1726075839771,-594.39655094,0.00013,2]
[337766391,1726075839782,-1765.19999999,0.00013,2]
[337766392,1726075839916,-501.04428,0.00013,2]
[337766393,1726075839928,-141366.67604883,0.00013,2]
[337766394,1726075839939,-300.0,0.00013,2]
[337766395,1726075839951,-4580.2,0.00013,2]
[337766396,1726075839962,-425.0,0.00013,2]
[337766397,1726075839977,-24924.90000006,0.00013,2]
[337766398,1726075840004,-950.90019971,0.00013,2]
[337766399,1726075842592,-478.27,0.00012561,2]
[337766400,1726075842602,-346696.48297482,0.00013,2]
[337766401,1726075842671,-15842.67023661,0.00013,2]
[337766402,1726075842682,-1506.43203201,0.00013,2]
[337766413,1726075845519,-314203.74803649,0.00013,2]
[337766415,1726075845529,-22419.86921378,0.00013,2]
[337766416,1726075845539,-160.66,0.00013001,2]
[337766418,1726075845548,-160.66,0.00013004,2]
[337766420,1726075845557,-160.66,0.00013008,2]
[337766422,1726075845567,-160.66,0.00013011,2]
[337766424,1726075845576,-160.66,0.00013015,2]
[337766426,1726075845585,-160.66,0.00013018,2]
[337766428,1726075845594,-160.66,0.00013021,2]
[337766430,1726075845603,-160.66,0.00013025,2]
[337766432,1726075845612,-160.66,0.00013028,2]
[337766434,1726075845624,-203.54,0.00013069,2]
[337766435,1726075845634,-667.47,0.00013091,2]
[337766437,1726075845644,-250.0,0.00013132,2]
[337766439,1726075845653,-500.0,0.00013165,2]
[337766441,1726075845662,-886.62472202,0.00013184,2]
[337766442,1726075845673,-218.2,0.00013292,2]
[337766443,1726075845682,-381.45,0.00013317,2]
[337766444,1726075845692,-1306.17976294,0.00013325,2]
[337766445,1726075845704,-4042.37023706,0.00013325,2]
[337766446,1726075845713,-886.62472202,0.00013398,2]
[337766447,1726075845722,-757.35504093,0.00013613,2]
[337766448,1726075845752,-129.26968109,0.00013613,2]
[337766449,1726075845761,-169.45,0.00013699,2]
[337766450,1726075845770,-172.38,0.00013699,2]
[337766451,1726075845779,-66.12159916,0.00013699,2]
[337766452,1726075845790,-95.60840084,0.00013699,2]
[337766453,1726075845800,-200.0,0.00013699,2]
[337766454,1726075845809,-847.66959916,0.00013704,2]
[337766456,1726076091455,434.87,0.00011192,2]
[337766457,1726076621262,163.33,0.00010959,2]
[337766458,1726076647079,1050.0,0.00011,2]
[337766468,1726076787563,413.12,0.00010693,2]
[337766520,1726077031749,-329.27,0.00012581,2]
[337766521,1726077031765,-300.0,0.00012607,2]
[337766522,1726077031780,-300.0,0.00012607,2]
[337766523,1726077031796,-1771.23747392,0.00012608,2]
[337766524,1726077031814,-2920.37687456,0.00012608,2]
[337766525,1726077031929,-17498.36366495,0.00012608,2]
[337766526,1726077031950,-1710.02198657,0.00012608,2]
[337766527,1726077031965,-218.24,0.00012613,2]
[337766528,1726077031980,-1000.0,0.00012641,2]
[337766529,1726077031997,-250.0,0.00012719,2]
[337766530,1726077032012,-250.0,0.00012741,2]
[337766531,1726077032028,-2000.0,0.00012752,2]
[337766534,1726077032042,-428.75,0.00012758,2]
[337766536,1726077032057,-250.0,0.00012759,2]
[337766537,1726077032072,-168.54,0.0001286,2]
[337766538,1726077032087,-500.0,0.00012877,2]
[337766539,1726077032102,-150.0,0.00012877,2]
[337766541,1726077032117,-755.66,0.00012889,2]
[337766543,1726077032133,-2446.0567,0.000129,2]
[337766544,1726077032149,-1451.1123,0.000129,2]
[337766545,1726077032164,-1075.8716,0.000129,2]
[337766546,1726077032181,-413.12,0.00012957,2]
[337766547,1726077032196,-193.52,0.00012964,2]
[337766548,1726077032410,-315.04,0.00012964,2]
[337766549,1726077032420,-1100.0,0.00013,2]
[337766550,1726077032429,-921.28055295,0.00013291,2]
[337766551,1726077032439,-243.1050947,0.00013549,2]
[337766552,1726077032448,-150.0,0.00013689,2]
[337766553,1726077032457,-10930.3533,0.0001369,2]
[337766554,1726077032467,-2959.2585,0.0001369,2]
[337766555,1726077032477,-176.33,0.00013699,2]
[337766556,1726077032487,-161.73,0.00013699,2]
[337766557,1726077032496,-172.38,0.00013699,2]
[337766558,1726077032505,-21513.8911,0.000137,2]
[337766559,1726077032515,-200.0,0.00013704,2]
[337766560,1726077032527,-1211.62887,0.00013704,2]
[337766561,1726077032537,-3106.61778023,0.00013758,2]
[337766562,1726077032546,-721.53533603,0.00013778,2]
[337766563,1726077032556,-86248.9941,0.0001379,2]
[337766564,1726077032566,-420.0,0.00013831,2]
[337766565,1726077032575,-1547.0,0.00013858,2]
[337766566,1726077032585,-504.067,0.00013858,2]
[337766567,1726077032594,-448.0,0.00013858,2]
[337766568,1726077032604,-810.0,0.00013858,2]
[337766569,1726077032614,-557.0,0.00013858,2]
[337766570,1726077032623,-931.0,0.00013858,2]
[337766571,1726077032633,-1901.0,0.00013858,2]
[337766572,1726077032642,-553.0,0.00013858,2]
[337766573,1726077032654,-805.0,0.00013858,2]
[337766574,1726077032663,-1117.0,0.00013858,2]
[337766575,1726077032673,-248.0,0.00013858,2]
[337766576,1726077032682,-1920.0,0.00013858,2]
[337766577,1726077032692,-3343.0,0.00013858,2]
[337766578,1726077032701,-5860.0,0.00013858,2]
[337766579,1726077032710,-150.0,0.00013858,2]
[337766580,1726077032720,-1145.0,0.00013858,2]
[337766581,1726077032729,-2500.0,0.00013874,2]
[337766582,1726077032739,-3106.61778014,0.00013885,2]
[337766583,1726077032749,-600.0,0.000139,5]
[337766584,1726077032758,-154.36238,0.00013974,2]
[337766585,1726077032767,-152.714665,0.00013974,2]
[337766586,1726077032777,-154.36238,0.00013974,2]
[337766587,1726077032786,-264.904698,0.00013974,2]
[337766588,1726077032796,-154.362382,0.00013974,2]
[337766589,1726077032805,-691.6956,0.00013974,2]
[337766590,1726077032815,-154.36238,0.00013974,2]
[337766591,1726077032824,-152.714662,0.00013974,2]
[337766592,1726077032834,-674.94898,0.00013974,2]
[337766593,1726077032844,-173.0,0.00014,2]
[337766594,1726077032854,-1300.0,0.00014,5]
[337766595,1726077032864,-3106.61778014,0.00014012,2]
[337766596,1726077032874,-2000.0,0.000141,5]
[337766597,1726077032884,-3106.61778014,0.00014139,2]
[337766598,1726077032894,-264.904698,0.00014149,2]